[Event "Titled Tuesday Blitz May 24 Early 2022"]
[White "Preotu, Razvan"]
[Black "Przybylski, Wojciech"]
[WhiteFideId "2613280"]
[BlackFideId "1117599"]
[WhiteElo "2407"]
[BlackElo "2133"]
[Result "0-1"]
[Round "02"]
[TimeControl "180+1"]
[Date "2022.05.25"]
[WhiteClock "0:00:02"]
[BlackClock "0:00:08"]

1. e4 {[%clk 0:03:00]}  e5 {[%clk 0:02:59]} 2. Nf3 {[%clk 0:03:00]}  Nc6 {[%clk 0:02:58]} 3. Bc4 {[%clk 0:03:00]}  Nf6 {[%clk 0:02:58]} 4. d3 {[%clk 0:02:59]}  Be7 {[%clk 0:02:57]} 5. O-O {[%clk 0:02:59]}  O-O {[%clk 0:02:57]} 6. Re1 {[%clk 0:03:00]}  d6 {[%clk 0:02:51]} 7. a4 {[%clk 0:02:59]}  Be6 {[%clk 0:02:50]} 8. Bxe6 {[%clk 0:02:51]}  fxe6 {[%clk 0:02:50]} 9. a5 {[%clk 0:02:46]}  a6 {[%clk 0:02:49]} 10. c3 {[%clk 0:02:45]}  Qd7 {[%clk 0:02:48]} 11. Nbd2 {[%clk 0:02:44]}  Rae8 {[%clk 0:02:47]} 12. Nf1 {[%clk 0:02:43]}  Kh8 {[%clk 0:02:46]} 13. Ng3 {[%clk 0:02:41]}  Nd8 {[%clk 0:02:44]} 14. d4 {[%clk 0:02:39]}  Nf7 {[%clk 0:02:38]} 15. dxe5 {[%clk 0:02:29]}  dxe5 {[%clk 0:02:34]} 16. Qb3 {[%clk 0:02:14]}  Qc6 {[%clk 0:02:30]} 17. Bg5 {[%clk 0:01:56]}  Bc5 {[%clk 0:02:24]} 18. Be3 {[%clk 0:01:28]}  Ng4 {[%clk 0:02:06]} 19. Bxc5 {[%clk 0:01:25]}  Qxc5 {[%clk 0:02:07]} 20. Re2 {[%clk 0:01:24]}  Nd6 {[%clk 0:02:07]} 21. h3 {[%clk 0:01:16]}  Nf6 {[%clk 0:01:53]} 22. Ng5 {[%clk 0:01:06]}  Qc4 {[%clk 0:01:26]} 23. Qxc4 {[%clk 0:01:02]}  Nxc4 {[%clk 0:01:26]} 24. Nf3 {[%clk 0:01:03]}  Nd7 {[%clk 0:01:19]} 25. b3 {[%clk 0:00:58]}  Nd6 {[%clk 0:01:18]} 26. Nf1 {[%clk 0:00:53]}  Rf4 {[%clk 0:01:01]} 27. N1d2 {[%clk 0:00:53]}  Nf7 {[%clk 0:00:56]} 28. g3 {[%clk 0:00:51]}  Rf6 {[%clk 0:00:54]} 29. Kg2 {[%clk 0:00:52]}  Kg8 {[%clk 0:00:49]} 30. Nc4 {[%clk 0:00:50]}  Kf8 {[%clk 0:00:48]} 31. Rd1 {[%clk 0:00:49]}  Ke7 {[%clk 0:00:48]} 32. Red2 {[%clk 0:00:48]}  Nc5 {[%clk 0:00:33]} 33. Ncxe5 {[%clk 0:00:44]}  Nxe5 {[%clk 0:00:27]} 34. Nxe5 {[%clk 0:00:45]}  Nxe4 {[%clk 0:00:27]} 35. Rd7+ {[%clk 0:00:44]}  Kf8 {[%clk 0:00:27]} 36. Rxc7 {[%clk 0:00:26]}  Rxf2+ {[%clk 0:00:26]} 37. Kg1 {[%clk 0:00:26]}  Rf5 {[%clk 0:00:20]} 38. Ng4 {[%clk 0:00:14]}  h5 {[%clk 0:00:18]} 39. Nh2 {[%clk 0:00:11]}  Nxg3 {[%clk 0:00:17]} 40. Kg2 {[%clk 0:00:11]}  Ne2 {[%clk 0:00:16]} 41. Rdd7 {[%clk 0:00:06]}  Rg5+ {[%clk 0:00:15]} 42. Kf2 {[%clk 0:00:06]}  Nf4 {[%clk 0:00:15]} 43. Nf3 {[%clk 0:00:06]}  Nxh3+ {[%clk 0:00:14]} 44. Ke3 {[%clk 0:00:07]}  Rg3 {[%clk 0:00:13]} 45. Ke2 {[%clk 0:00:04]}  Kg8 {[%clk 0:00:13]} 46. Rxb7 {[%clk 0:00:04]}  Rf8 {[%clk 0:00:13]} 47. Nd4 {[%clk 0:00:04]}  Nf4+ {[%clk 0:00:13]} 48. Kf2 {[%clk 0:00:04]}  Rg6 {[%clk 0:00:11]} 49. Kf3 {[%clk 0:00:03]}  Nd3+ {[%clk 0:00:10]} 50. Ke4 {[%clk 0:00:04]}  Nc5+ {[%clk 0:00:10]} 51. Ke5 {[%clk 0:00:03]}  Rg5+ {[%clk 0:00:07]} 52. Kd6 {[%clk 0:00:02]}  Rd5+ {[%clk 0:00:07]} 53. Ke7 {[%clk 0:00:02]}  Rxd7+ {[%clk 0:00:07]} 54. Rxd7 {[%clk 0:00:03]}  Nxd7 {[%clk 0:00:07]} 55. Kxd7 {[%clk 0:00:04]}  h4 {[%clk 0:00:08]} 56. Nxe6 {[%clk 0:00:02]}  h3 {[%clk 0:00:08]} 57. Kd6 {[%clk 0:00:02]}  h2 {[%clk 0:00:08]} 0-1


[Site "https://www.chess.com"]

[Event "Titled Tuesday Blitz May 24 Early 2022"]
[White "Rahman, Adel"]
[Black "Samunenkov, Ihor"]
[WhiteFideId "14204177"]
[BlackFideId "14187086"]
[WhiteElo "2175"]
[BlackElo "2409"]
[Result "0-1"]
[Round "02"]
[TimeControl "180+1"]
[Date "2022.05.25"]
[WhiteClock "0:00:12"]
[BlackClock "0:00:43"]

1. e4 {[%clk 0:03:00]}  c6 {[%clk 0:03:00]} 2. d4 {[%clk 0:02:59]}  d5 {[%clk 0:03:01]} 3. e5 {[%clk 0:02:59]}  c5 {[%clk 0:02:59]} 4. Nf3 {[%clk 0:02:59]}  cxd4 {[%clk 0:02:58]} 5. Nxd4 {[%clk 0:02:57]}  Nc6 {[%clk 0:02:59]} 6. Nxc6 {[%clk 0:02:55]}  bxc6 {[%clk 0:03:00]} 7. Bd3 {[%clk 0:02:54]}  e6 {[%clk 0:03:00]} 8. Be3 {[%clk 0:02:52]}  c5 {[%clk 0:02:32]} 9. c4 {[%clk 0:02:41]}  d4 {[%clk 0:02:19]} 10. Bf4 {[%clk 0:02:32]}  Bb7 {[%clk 0:02:19]} 11. O-O {[%clk 0:02:30]}  Ne7 {[%clk 0:02:17]} 12. Nd2 {[%clk 0:02:28]}  Ng6 {[%clk 0:02:15]} 13. Bg3 {[%clk 0:02:27]}  Be7 {[%clk 0:02:15]} 14. Ne4 {[%clk 0:02:14]}  O-O {[%clk 0:02:14]} 15. Qe2 {[%clk 0:02:08]}  Qd7 {[%clk 0:01:59]} 16. Rae1 {[%clk 0:01:57]}  Bc6 {[%clk 0:01:57]} 17. f4 {[%clk 0:01:54]}  Bh4 {[%clk 0:01:33]} 18. Nxc5 {[%clk 0:01:37]}  Qe7 {[%clk 0:01:29]} 19. Ne4 {[%clk 0:01:35]}  Bxg3 {[%clk 0:01:29]} 20. hxg3 {[%clk 0:01:35]}  Rab8 {[%clk 0:01:28]} 21. b3 {[%clk 0:01:34]}  a5 {[%clk 0:01:28]} 22. Ng5 {[%clk 0:01:27]}  a4 {[%clk 0:01:22]} 23. Qh5 {[%clk 0:01:20]}  h6 {[%clk 0:01:21]} 24. Bc2 {[%clk 0:00:36]}  axb3 {[%clk 0:01:10]} 25. axb3 {[%clk 0:00:35]}  d3 {[%clk 0:01:09]} 26. Bxd3 {[%clk 0:00:31]}  Rxb3 {[%clk 0:01:06]} 27. Be4 {[%clk 0:00:29]}  hxg5 {[%clk 0:00:48]} 28. Bxc6 {[%clk 0:00:15]}  Qc5+ {[%clk 0:00:48]} 29. Kh2 {[%clk 0:00:14]}  Qxc6 {[%clk 0:00:48]} 30. Rh1 {[%clk 0:00:14]}  Rd8 {[%clk 0:00:47]} 31. Kg1 {[%clk 0:00:12]}  Rd2 {[%clk 0:00:43]} 0-1


[Site "https://www.chess.com"]

[Event "Titled Tuesday Blitz May 24 Early 2022"]
[White "Ramirez Vido, Robert Yorisan"]
[Black "Garv Gaur"]
[WhiteFideId "3513823"]
[BlackFideId "45030839"]
[WhiteElo "2329"]
[BlackElo "1950"]
[Result "1-0"]
[Round "02"]
[TimeControl "180+1"]
[Date "2022.05.25"]
[WhiteClock "0:00:11"]
[BlackClock "0:00:10"]

1. g3 {[%clk 0:03:00]}  d5 {[%clk 0:02:58]} 2. Bg2 {[%clk 0:03:01]}  c5 {[%clk 0:02:58]} 3. Nf3 {[%clk 0:03:01]}  Nf6 {[%clk 0:02:59]} 4. d4 {[%clk 0:02:58]}  cxd4 {[%clk 0:02:49]} 5. Nxd4 {[%clk 0:02:57]}  g6 {[%clk 0:02:49]} 6. O-O {[%clk 0:02:57]}  Bg7 {[%clk 0:02:49]} 7. c4 {[%clk 0:02:57]}  O-O {[%clk 0:02:48]} 8. cxd5 {[%clk 0:02:56]}  Nxd5 {[%clk 0:02:47]} 9. e4 {[%clk 0:02:34]}  Nb4 {[%clk 0:02:33]} 10. Be3 {[%clk 0:02:34]}  N8c6 {[%clk 0:02:30]} 11. Nxc6 {[%clk 0:02:34]}  Nxc6 {[%clk 0:02:29]} 12. Nc3 {[%clk 0:02:22]}  Qxd1 {[%clk 0:02:14]} 13. Rfxd1 {[%clk 0:02:19]}  Be6 {[%clk 0:02:15]} 14. Nd5 {[%clk 0:02:18]}  Rac8 {[%clk 0:01:52]} 15. Rac1 {[%clk 0:02:14]}  Rfd8 {[%clk 0:01:51]} 16. Rd2 {[%clk 0:01:59]}  Kf8 {[%clk 0:01:33]} 17. b3 {[%clk 0:01:25]}  Ne5 {[%clk 0:00:34]} 18. Rdc2 {[%clk 0:01:11]}  b6 {[%clk 0:00:17]} 19. Rc7 {[%clk 0:01:08]}  Rxc7 {[%clk 0:00:16]} 20. Rxc7 {[%clk 0:01:07]}  Rc8 {[%clk 0:00:16]} 21. Rxa7 {[%clk 0:00:59]}  Bxd5 {[%clk 0:00:12]} 22. exd5 {[%clk 0:00:59]}  f5 {[%clk 0:00:10]} 23. Bxb6 {[%clk 0:00:49]}  Rc1+ {[%clk 0:00:09]} 24. Bf1 {[%clk 0:00:50]}  Nf3+ {[%clk 0:00:09]} 25. Kg2 {[%clk 0:00:49]}  Ne1+ {[%clk 0:00:07]} 26. Kh3 {[%clk 0:00:45]}  g5 {[%clk 0:00:08]} 27. Be2 {[%clk 0:00:36]}  Bf6 {[%clk 0:00:08]} 28. d6 {[%clk 0:00:27]}  g4+ {[%clk 0:00:06]} 29. Bxg4 {[%clk 0:00:27]}  fxg4+ {[%clk 0:00:07]} 30. Kxg4 {[%clk 0:00:28]}  exd6 {[%clk 0:00:08]} 31. Rxh7 {[%clk 0:00:26]}  Nd3 {[%clk 0:00:07]} 32. a4 {[%clk 0:00:22]}  Ne5+ {[%clk 0:00:07]} 33. Kf5 {[%clk 0:00:21]}  Bg7 {[%clk 0:00:08]} 34. Bd4 {[%clk 0:00:18]}  Rd1 {[%clk 0:00:05]} 35. Bxe5 {[%clk 0:00:17]}  dxe5 {[%clk 0:00:05]} 36. Rh4 {[%clk 0:00:17]}  Rb1 {[%clk 0:00:05]} 37. b4 {[%clk 0:00:17]}  Rb2 {[%clk 0:00:03]} 38. Ke6 {[%clk 0:00:13]}  Rxf2 {[%clk 0:00:03]} 39. a5 {[%clk 0:00:14]}  Rb2 {[%clk 0:00:02]} 40. a6 {[%clk 0:00:14]}  Ra2 {[%clk 0:00:02]} 41. b5 {[%clk 0:00:13]}  e4 {[%clk 0:00:03]} 42. Rxe4 {[%clk 0:00:13]}  Ke8 {[%clk 0:00:04]} 43. Kd6+ {[%clk 0:00:12]}  Kd8 {[%clk 0:00:04]} 44. Kc6 {[%clk 0:00:13]}  Bf8 {[%clk 0:00:05]} 45. Kb7 {[%clk 0:00:08]}  Bc5 {[%clk 0:00:04]} 46. b6 {[%clk 0:00:07]}  Rb2 {[%clk 0:00:04]} 47. Re6 {[%clk 0:00:07]}  Kd7 {[%clk 0:00:04]} 48. Rg6 {[%clk 0:00:06]}  Bd6 {[%clk 0:00:04]} 49. a7 {[%clk 0:00:06]}  Ra2 {[%clk 0:00:04]} 50. Rxd6+ {[%clk 0:00:06]}  Kxd6 {[%clk 0:00:04]} 51. a8=Q {[%clk 0:00:07]}  Rxa8 {[%clk 0:00:04]} 52. Kxa8 {[%clk 0:00:07]}  Ke5 {[%clk 0:00:05]} 53. b7 {[%clk 0:00:08]}  Ke4 {[%clk 0:00:06]} 54. b8=Q {[%clk 0:00:09]}  Kf3 {[%clk 0:00:06]} 55. Qf4+ {[%clk 0:00:09]}  Kg2 {[%clk 0:00:07]} 56. g4 {[%clk 0:00:10]}  Kh3 {[%clk 0:00:08]} 57. g5 {[%clk 0:00:10]}  Kg2 {[%clk 0:00:08]} 58. g6 {[%clk 0:00:10]}  Kh1 {[%clk 0:00:09]} 59. g7 {[%clk 0:00:10]}  Kg2 {[%clk 0:00:10]} 60. Qg3+ {[%clk 0:00:10]}  Kh1 {[%clk 0:00:11]} 61. Qe1+ {[%clk 0:00:10]}  Kg2 {[%clk 0:00:10]} 62. g8=Q+ {[%clk 0:00:11]}  Kh3 {[%clk 0:00:10]} 63. Qgg3# {[%clk 0:00:11]} 1-0


[Site "https://www.chess.com"]

[Event "Titled Tuesday Blitz May 24 Early 2022"]
[White "Rustemov, Alexander"]
[Black "Gurevich, Dmitry"]
[WhiteFideId "4119002"]
[BlackFideId "2000407"]
[WhiteElo "2834"]
[BlackElo "2506"]
[Result "1-0"]
[Round "02"]
[TimeControl "180+1"]
[Date "2022.05.24"]
[WhiteClock "0:00:27"]
[BlackClock "0:00:17"]

1. Nf3 {[%clk 0:03:00]}  Nf6 {[%clk 0:02:59]} 2. c4 {[%clk 0:03:00]}  e6 {[%clk 0:02:57]} 3. Nc3 {[%clk 0:02:59]}  d5 {[%clk 0:02:57]} 4. d4 {[%clk 0:02:58]}  Be7 {[%clk 0:02:57]} 5. Bg5 {[%clk 0:02:56]}  h6 {[%clk 0:02:56]} 6. Bh4 {[%clk 0:02:56]}  O-O {[%clk 0:02:56]} 7. e3 {[%clk 0:02:56]}  b6 {[%clk 0:02:56]} 8. Rc1 {[%clk 0:02:49]}  Bb7 {[%clk 0:02:55]} 9. Bxf6 {[%clk 0:02:48]}  Bxf6 {[%clk 0:02:54]} 10. cxd5 {[%clk 0:02:49]}  exd5 {[%clk 0:02:54]} 11. g3 {[%clk 0:02:50]}  Nd7 {[%clk 0:02:49]} 12. Bg2 {[%clk 0:02:50]}  c6 {[%clk 0:02:47]} 13. O-O {[%clk 0:02:49]}  Re8 {[%clk 0:02:47]} 14. Qd3 {[%clk 0:02:38]}  c5 {[%clk 0:02:33]} 15. Rfd1 {[%clk 0:02:36]}  c4 {[%clk 0:02:31]} 16. Qc2 {[%clk 0:02:34]}  a6 {[%clk 0:02:31]} 17. a4 {[%clk 0:02:33]}  Bc6 {[%clk 0:02:30]} 18. Ne5 {[%clk 0:02:32]}  Nxe5 {[%clk 0:02:16]} 19. dxe5 {[%clk 0:02:32]}  Rxe5 {[%clk 0:02:15]} 20. Rd2 {[%clk 0:02:14]}  Ra7 {[%clk 0:02:11]} 21. Rcd1 {[%clk 0:02:12]}  Rd7 {[%clk 0:02:11]} 22. h4 {[%clk 0:01:53]}  b5 {[%clk 0:02:08]} 23. axb5 {[%clk 0:01:51]}  axb5 {[%clk 0:02:08]} 24. Ne2 {[%clk 0:01:48]}  b4 {[%clk 0:02:03]} 25. Nd4 {[%clk 0:01:39]}  Bb7 {[%clk 0:01:56]} 26. Qa4 {[%clk 0:01:38]}  Be7 {[%clk 0:01:37]} 27. Nc6 {[%clk 0:01:30]}  Bxc6 {[%clk 0:01:35]} 28. Qxc6 {[%clk 0:01:31]}  Qc7 {[%clk 0:01:30]} 29. Qxc7 {[%clk 0:01:22]}  Rxc7 {[%clk 0:01:29]} 30. Bxd5 {[%clk 0:01:22]}  c3 {[%clk 0:01:22]} 31. bxc3 {[%clk 0:01:21]}  bxc3 {[%clk 0:01:21]} 32. Rc2 {[%clk 0:01:22]}  Bb4 {[%clk 0:01:14]} 33. Rd4 {[%clk 0:01:18]}  Ba3 {[%clk 0:01:09]} 34. e4 {[%clk 0:01:14]}  Bb2 {[%clk 0:01:07]} 35. Kg2 {[%clk 0:01:12]}  Kf8 {[%clk 0:01:06]} 36. f4 {[%clk 0:01:12]}  Re8 {[%clk 0:01:05]} 37. Ra4 {[%clk 0:01:07]}  Rb8 {[%clk 0:01:03]} 38. h5 {[%clk 0:01:06]}  f6 {[%clk 0:00:57]} 39. Kf3 {[%clk 0:01:06]}  Ke7 {[%clk 0:00:57]} 40. Kg4 {[%clk 0:01:06]}  Kd6 {[%clk 0:00:50]} 41. Kf5 {[%clk 0:01:03]}  Rb5 {[%clk 0:00:46]} 42. Kg6 {[%clk 0:01:01]}  Rbc5 {[%clk 0:00:46]} 43. Ra6+ {[%clk 0:00:58]}  Ke7 {[%clk 0:00:42]} 44. Kxg7 {[%clk 0:00:58]}  Rd7 {[%clk 0:00:26]} 45. Rxf6 {[%clk 0:00:53]}  Rdxd5 {[%clk 0:00:23]} 46. exd5 {[%clk 0:00:51]}  Rxd5 {[%clk 0:00:23]} 47. Rc6 {[%clk 0:00:43]}  Rd3 {[%clk 0:00:23]} 48. g4 {[%clk 0:00:43]}  Rg3 {[%clk 0:00:23]} 49. Rg6 {[%clk 0:00:33]}  Rd3 {[%clk 0:00:22]} 50. f5 {[%clk 0:00:26]}  Rd2 {[%clk 0:00:17]} 51. f6+ {[%clk 0:00:27]} 1-0


[Site "https://www.chess.com"]

[Event "Titled Tuesday Blitz May 24 Early 2022"]
[White "Sailer, Mike"]
[Black "Ajay Krishna, S"]
[WhiteFideId "2012901"]
[BlackFideId "5096430"]
[WhiteElo "2109"]
[BlackElo "2247"]
[Result "1-0"]
[Round "02"]
[TimeControl "180+1"]
[Date "2022.05.25"]
[WhiteClock "0:00:10"]
[BlackClock "0:00:13"]

1. d4 {[%clk 0:03:00]}  d5 {[%clk 0:02:58]} 2. Nf3 {[%clk 0:03:00]}  e6 {[%clk 0:02:57]} 3. Bf4 {[%clk 0:02:59]}  c5 {[%clk 0:02:57]} 4. e3 {[%clk 0:03:00]}  Nc6 {[%clk 0:02:54]} 5. Nc3 {[%clk 0:03:00]}  Bd6 {[%clk 0:02:53]} 6. Bxd6 {[%clk 0:02:59]}  Qxd6 {[%clk 0:02:52]} 7. Nb5 {[%clk 0:03:00]}  Qe7 {[%clk 0:02:46]} 8. dxc5 {[%clk 0:03:00]}  Nf6 {[%clk 0:02:45]} 9. Nd6+ {[%clk 0:02:59]}  Kf8 {[%clk 0:02:45]} 10. a3 {[%clk 0:02:51]}  Bd7 {[%clk 0:02:31]} 11. b4 {[%clk 0:02:44]}  b6 {[%clk 0:02:31]} 12. Bb5 {[%clk 0:02:23]}  bxc5 {[%clk 0:02:30]} 13. bxc5 {[%clk 0:02:19]}  Nb8 {[%clk 0:01:55]} 14. a4 {[%clk 0:01:47]}  a6 {[%clk 0:01:52]} 15. Bd3 {[%clk 0:01:29]}  Qd8 {[%clk 0:01:41]} 16. Qd2 {[%clk 0:01:10]}  Qc7 {[%clk 0:00:48]} 17. Ne5 {[%clk 0:00:59]}  Be8 {[%clk 0:00:40]} 18. Qb4 {[%clk 0:00:48]}  a5 {[%clk 0:00:29]} 19. Qb6 {[%clk 0:00:36]}  Qxb6 {[%clk 0:00:19]} 20. cxb6 {[%clk 0:00:35]}  Ke7 {[%clk 0:00:19]} 21. b7 {[%clk 0:00:29]}  Ra6 {[%clk 0:00:12]} 22. Nc8+ {[%clk 0:00:27]}  Kd8 {[%clk 0:00:11]} 23. Bxa6 {[%clk 0:00:24]}  Nxa6 {[%clk 0:00:11]} 24. O-O {[%clk 0:00:15]}  Kc7 {[%clk 0:00:11]} 25. Rfb1 {[%clk 0:00:14]}  Nb8 {[%clk 0:00:08]} 26. Na7 {[%clk 0:00:10]}  Bc6 {[%clk 0:00:07]} 27. Naxc6 {[%clk 0:00:10]}  Nxc6 {[%clk 0:00:07]} 28. Nxc6 {[%clk 0:00:10]}  Kxc6 {[%clk 0:00:08]} 29. b8=Q {[%clk 0:00:11]}  Rxb8 {[%clk 0:00:08]} 30. Rxb8 {[%clk 0:00:11]}  Nd7 {[%clk 0:00:08]} 31. Rh8 {[%clk 0:00:11]}  h6 {[%clk 0:00:08]} 32. Rh7 {[%clk 0:00:11]}  g5 {[%clk 0:00:08]} 33. Rxf7 {[%clk 0:00:11]}  Nc5 {[%clk 0:00:09]} 34. Rf6 {[%clk 0:00:10]}  h5 {[%clk 0:00:10]} 35. Rg6 {[%clk 0:00:10]}  g4 {[%clk 0:00:08]} 36. Rh6 {[%clk 0:00:10]}  Ne4 {[%clk 0:00:08]} 37. Rxh5 {[%clk 0:00:09]}  Kc5 {[%clk 0:00:08]} 38. f3 {[%clk 0:00:09]}  gxf3 {[%clk 0:00:08]} 39. gxf3 {[%clk 0:00:09]}  Nd2 {[%clk 0:00:09]} 40. Kf2 {[%clk 0:00:09]}  Kc4 {[%clk 0:00:10]} 41. Rh8 {[%clk 0:00:09]}  Kc3 {[%clk 0:00:10]} 42. Rc8+ {[%clk 0:00:09]}  Nc4 {[%clk 0:00:10]} 43. Rxc4+ {[%clk 0:00:07]}  Kxc4 {[%clk 0:00:10]} 44. Re1 {[%clk 0:00:07]}  Kc5 {[%clk 0:00:10]} 45. h4 {[%clk 0:00:07]}  Kd6 {[%clk 0:00:11]} 46. h5 {[%clk 0:00:08]}  Ke5 {[%clk 0:00:12]} 47. h6 {[%clk 0:00:09]}  Kf6 {[%clk 0:00:13]} 48. Rg1 {[%clk 0:00:10]}  Kf7 {[%clk 0:00:13]} 49. h7 {[%clk 0:00:10]}  Kf6 {[%clk 0:00:13]} 50. h8=Q+ {[%clk 0:00:11]}  Ke7 {[%clk 0:00:14]} 51. Rg7+ {[%clk 0:00:11]}  Kd6 {[%clk 0:00:15]} 52. Qb8+ {[%clk 0:00:11]}  Kc5 {[%clk 0:00:15]} 53. Rc7+ {[%clk 0:00:11]}  Kd6 {[%clk 0:00:15]} 54. Rc4+ {[%clk 0:00:09]}  Ke7 {[%clk 0:00:13]} 55. Qb7+ {[%clk 0:00:09]}  Kf6 {[%clk 0:00:12]} 56. Rf4+ {[%clk 0:00:09]}  Ke5 {[%clk 0:00:13]} 57. Qc7# {[%clk 0:00:10]} 1-0


[Site "https://www.chess.com"]

[Event "Titled Tuesday Blitz May 24 Early 2022"]
[White "Sanchez, Robert"]
[Black "McCoy, Owen"]
[WhiteFideId "2034360"]
[BlackFideId "30924502"]
[WhiteElo "2247"]
[BlackElo "2485"]
[Result "1-0"]
[Round "02"]
[TimeControl "180+1"]
[Date "2022.05.25"]
[WhiteClock "0:01:14"]
[BlackClock "0:00:15"]

1. e4 {[%clk 0:03:00]}  c5 {[%clk 0:03:00]} 2. Nf3 {[%clk 0:03:01]}  d6 {[%clk 0:03:00]} 3. d4 {[%clk 0:03:01]}  cxd4 {[%clk 0:03:01]} 4. Nxd4 {[%clk 0:03:02]}  Nf6 {[%clk 0:03:02]} 5. Nc3 {[%clk 0:03:02]}  a6 {[%clk 0:03:03]} 6. Be3 {[%clk 0:03:02]}  e5 {[%clk 0:03:03]} 7. Nb3 {[%clk 0:03:02]}  Be6 {[%clk 0:03:03]} 8. f3 {[%clk 0:03:03]}  Be7 {[%clk 0:03:03]} 9. Qd2 {[%clk 0:03:03]}  Nbd7 {[%clk 0:03:01]} 10. O-O-O {[%clk 0:03:04]}  O-O {[%clk 0:02:59]} 11. g4 {[%clk 0:03:04]}  b5 {[%clk 0:03:00]} 12. g5 {[%clk 0:03:04]}  b4 {[%clk 0:03:00]} 13. Ne2 {[%clk 0:03:05]}  Ne8 {[%clk 0:02:59]} 14. Ng3 {[%clk 0:03:05]}  a5 {[%clk 0:02:58]} 15. Kb1 {[%clk 0:03:06]}  a4 {[%clk 0:02:57]} 16. Nc1 {[%clk 0:03:06]}  b3 {[%clk 0:02:56]} 17. cxb3 {[%clk 0:03:05]}  axb3 {[%clk 0:02:57]} 18. a3 {[%clk 0:03:05]}  Nc7 {[%clk 0:02:56]} 19. Nf5 {[%clk 0:03:05]}  d5 {[%clk 0:02:54]} 20. Nxe7+ {[%clk 0:03:01]}  Qxe7 {[%clk 0:02:55]} 21. Bd3 {[%clk 0:02:53]}  d4 {[%clk 0:02:52]} 22. Bf2 {[%clk 0:02:51]}  Nc5 {[%clk 0:02:52]} 23. f4 {[%clk 0:02:46]}  exf4 {[%clk 0:02:36]} 24. Qxf4 {[%clk 0:02:43]}  Nxd3 {[%clk 0:02:28]} 25. Nxd3 {[%clk 0:02:43]}  Nb5 {[%clk 0:02:29]} 26. Nb4 {[%clk 0:02:05]}  Nxa3+ {[%clk 0:02:17]} 27. bxa3 {[%clk 0:02:05]}  Rxa3 {[%clk 0:02:18]} 28. Rxd4 {[%clk 0:01:51]}  Rfa8 {[%clk 0:02:11]} 29. Rhd1 {[%clk 0:01:42]}  R3a4 {[%clk 0:01:47]} 30. Qd6 {[%clk 0:01:38]}  Ra1+ {[%clk 0:01:06]} 31. Kb2 {[%clk 0:01:37]}  R8a2+ {[%clk 0:01:01]} 32. Nxa2 {[%clk 0:01:35]}  Rxa2+ {[%clk 0:01:02]} 33. Kb1 {[%clk 0:01:22]}  Ra1+ {[%clk 0:00:21]} 34. Kxa1 {[%clk 0:01:21]}  Qa7+ {[%clk 0:00:22]} 35. Kb2 {[%clk 0:01:21]}  Qa2+ {[%clk 0:00:20]} 36. Kc3 {[%clk 0:01:21]}  Qc2+ {[%clk 0:00:19]} 37. Kb4 {[%clk 0:01:19]}  h5 {[%clk 0:00:18]} 38. g6 {[%clk 0:01:15]}  b2 {[%clk 0:00:15]} 39. Qd8# {[%clk 0:01:14]} 1-0


[Site "https://www.chess.com"]

[Event "Titled Tuesday Blitz May 24 Early 2022"]
[White "Sargsyan, Anna M."]
[Black "Klekowski, Maciej"]
[WhiteFideId "13308130"]
[BlackFideId "1132717"]
[WhiteElo "2271"]
[BlackElo "2476"]
[Result "0-1"]
[Round "02"]
[TimeControl "180+1"]
[Date "2022.05.24"]
[WhiteClock "0:00:04"]
[BlackClock "0:00:07"]

1. d4 {[%clk 0:02:59]}  Nf6 {[%clk 0:02:59]} 2. c4 {[%clk 0:03:00]}  e6 {[%clk 0:02:59]} 3. Nf3 {[%clk 0:03:00]}  Bb4+ {[%clk 0:02:57]} 4. Nc3 {[%clk 0:03:01]}  b6 {[%clk 0:02:55]} 5. Qc2 {[%clk 0:02:54]}  O-O {[%clk 0:02:50]} 6. Bg5 {[%clk 0:02:55]}  h6 {[%clk 0:02:40]} 7. Bh4 {[%clk 0:02:54]}  d6 {[%clk 0:02:40]} 8. e3 {[%clk 0:02:53]}  Nbd7 {[%clk 0:02:41]} 9. Bd3 {[%clk 0:02:53]}  Bb7 {[%clk 0:02:41]} 10. O-O {[%clk 0:02:52]}  c5 {[%clk 0:02:38]} 11. dxc5 {[%clk 0:02:41]}  Bxf3 {[%clk 0:02:34]} 12. gxf3 {[%clk 0:02:40]}  bxc5 {[%clk 0:02:34]} 13. Kh1 {[%clk 0:02:29]}  Rb8 {[%clk 0:02:21]} 14. Rg1 {[%clk 0:02:27]}  Qb6 {[%clk 0:02:14]} 15. Ne2 {[%clk 0:02:06]}  Qc6 {[%clk 0:02:03]} 16. Rg3 {[%clk 0:01:50]}  Nh5 {[%clk 0:02:01]} 17. Rh3 {[%clk 0:01:50]}  f5 {[%clk 0:01:57]} 18. Rg1 {[%clk 0:01:47]}  Ne5 {[%clk 0:01:55]} 19. e4 {[%clk 0:01:23]}  Rbe8 {[%clk 0:01:48]} 20. Bg3 {[%clk 0:00:43]}  Nxf3 {[%clk 0:01:27]} 21. Rxh5 {[%clk 0:00:37]}  Nxg1 {[%clk 0:01:27]} 22. Kxg1 {[%clk 0:00:37]}  g6 {[%clk 0:01:13]} 23. Rxh6 {[%clk 0:00:35]}  Kg7 {[%clk 0:01:14]} 24. Rh3 {[%clk 0:00:32]}  e5 {[%clk 0:01:10]} 25. exf5 {[%clk 0:00:29]}  e4 {[%clk 0:01:10]} 26. fxg6 {[%clk 0:00:28]}  exd3 {[%clk 0:01:07]} 27. Qxd3 {[%clk 0:00:19]}  Qe4 {[%clk 0:00:56]} 28. Qxe4 {[%clk 0:00:19]}  Rxe4 {[%clk 0:00:56]} 29. Nf4 {[%clk 0:00:20]}  Rexf4 {[%clk 0:00:55]} 30. Bxf4 {[%clk 0:00:19]}  Rxf4 {[%clk 0:00:56]} 31. Rd3 {[%clk 0:00:18]}  Rf6 {[%clk 0:00:55]} 32. Kg2 {[%clk 0:00:16]}  Kxg6 {[%clk 0:00:55]} 33. Kh3 {[%clk 0:00:16]}  Kf7 {[%clk 0:00:44]} 34. Kg3 {[%clk 0:00:14]}  Ke6 {[%clk 0:00:41]} 35. f3 {[%clk 0:00:13]}  Be1+ {[%clk 0:00:39]} 36. Kg4 {[%clk 0:00:14]}  Bf2 {[%clk 0:00:39]} 37. h4 {[%clk 0:00:14]}  Bd4 {[%clk 0:00:38]} 38. h5 {[%clk 0:00:14]}  Bxb2 {[%clk 0:00:38]} 39. Rd2 {[%clk 0:00:14]}  Be5 {[%clk 0:00:38]} 40. Re2 {[%clk 0:00:15]}  Rf4+ {[%clk 0:00:37]} 41. Kg5 {[%clk 0:00:15]}  Rxc4 {[%clk 0:00:37]} 42. h6 {[%clk 0:00:16]}  Kf7 {[%clk 0:00:37]} 43. Re1 {[%clk 0:00:13]}  Rc2 {[%clk 0:00:32]} 44. f4 {[%clk 0:00:13]}  Rg2+ {[%clk 0:00:30]} 45. Kf5 {[%clk 0:00:12]}  Rf2 {[%clk 0:00:29]} 46. h7 {[%clk 0:00:11]}  Bf6 {[%clk 0:00:20]} 47. Re6 {[%clk 0:00:11]}  Bh8 {[%clk 0:00:14]} 48. Rxd6 {[%clk 0:00:11]}  Kg7 {[%clk 0:00:13]} 49. Rd7+ {[%clk 0:00:11]}  Kh6 {[%clk 0:00:13]} 50. Rxa7 {[%clk 0:00:10]}  c4 {[%clk 0:00:13]} 51. a4 {[%clk 0:00:10]}  c3 {[%clk 0:00:13]} 52. Rc7 {[%clk 0:00:11]}  Ra2 {[%clk 0:00:13]} 53. Kg4 {[%clk 0:00:10]}  Rxa4 {[%clk 0:00:12]} 54. Kf3 {[%clk 0:00:11]}  Ra1 {[%clk 0:00:10]} 55. Kg4 {[%clk 0:00:10]}  Rg1+ {[%clk 0:00:10]} 56. Kf5 {[%clk 0:00:11]}  Rg6 {[%clk 0:00:07]} 57. Ke4 {[%clk 0:00:10]}  Rg7 {[%clk 0:00:06]} 58. Rxc3 {[%clk 0:00:07]}  Re7+ {[%clk 0:00:06]} 59. Kf5 {[%clk 0:00:05]}  Bxc3 {[%clk 0:00:07]} 60. h8=Q+ {[%clk 0:00:04]}  Bxh8 {[%clk 0:00:06]} 61. Kg4 {[%clk 0:00:04]}  Rf7 {[%clk 0:00:07]} 0-1


[Site "https://www.chess.com"]